bitfinex/quotes_SOLUSD_20251124
["timestamp","ask_amount","ask_price","bid_price","bid_amount"]
[1763976084360,7.70159371,128.93,128.88,0.67]
[1763976084530,0.16170143,128.9,128.89,9.78882769]
[1763976084730,0.16170143,128.9,128.89,13.30882769]
[1763976085063,0.16170143,128.9,128.88,0.67]
[1763976085231,0.16170143,128.9,128.89,3.52]
[1763976085854,0.16170143,128.9,128.89,21.0104214]
[1763976086158,0.00170143,128.9,128.89,21.6804214]
[1763976086736,0.00170143,128.9,128.89,29.4389752]
[1763976086931,0.00170143,128.9,128.89,21.6804214]
[1763976087164,0.00170143,128.9,128.89,29.4389752]
[1763976087461,0.00170143,128.9,128.89,21.6804214]
[1763976087661,0.00170143,128.9,128.89,4.19]
[1763976088040,0.00170143,128.9,128.89,11.89159371]
[1763976088479,0.00170143,128.9,128.89,21.6804214]
[1763976088872,0.00170143,128.9,128.89,22.45627678]
[1763976089567,0.00170143,128.9,128.89,10.45882769]
[1763976089762,0.00170143,128.9,128.89,4.19]
[1763976090280,0.00170143,128.9,128.86,0.67]
[1763976090456,7.70329514,128.9,128.88,3.52]
[1763976090953,7.70329514,128.9,128.85,8.37159371]
[1763976091158,0.68170143,128.9,128.86,3.52]
[1763976091356,7.70159371,128.87,128.82,2.37879116]
[1763976091578,7.70159371,128.83,128.82,2.37879116]
[1763976091954,26.50255371,128.88,128.82,2.37879116]
[1763976091955,7.70159371,128.84,128.82,2.37879116]
[1763976092157,0.68,128.85,128.82,2.37879116]
[1763976092357,7.70159371,128.83,128.82,2.37879116]
[1763976092899,8.38159371,128.83,128.82,2.37879116]
[1763976093191,0.68,128.83,128.82,2.37879116]
[1763976093372,8.38159371,128.83,128.82,2.37879116]
[1763976093574,7.70159371,128.83,128.82,2.37879116]
[1763976093883,8.38159371,128.83,128.82,2.37879116]
[1763976094356,26.50255371,128.83,128.82,2.20879116]
[1763976094986,18.80096,128.83,128.82,2.20879116]
[1763976095185,26.50255371,128.83,128.82,2.20879116]
[1763976095796,18.80096,128.83,128.82,2.20879116]
[1763976096081,26.50255371,128.83,128.82,2.20879116]
[1763976096483,7.70159371,128.83,128.82,2.20879116]
[1763976096690,8.28159371,128.83,128.82,2.20879116]
[1763976096861,18.12096,128.81,128.76,160.26]
[1763976097060,7.70159371,128.77,128.76,160.26]
[1763976097262,7.70159371,128.78,128.76,160.26]
[1763976097586,7.70159371,128.79,128.76,160.93]
[1763976097882,7.70159371,128.8,128.77,0.67]
[1763976098276,7.70159371,128.81,128.77,0.67]
[1763976098475,0.48,128.83,128.77,0.67]
[1763976098683,7.70159371,128.81,128.77,0.67]
[1763976099883,7.70159371,128.82,128.77,8.37159371]
[1763976100070,7.70159371,128.81,128.77,0.67]
[1763976100388,18.12096,128.85,128.78,0.67]
[1763976100576,1.2450524,128.88,128.8,7.70159371]
[1763976100766,7.70159371,128.85,128.81,4.19]
[1763976101091,7.70159371,128.84,128.81,4.19]
[1763976101394,0.7650524,128.86,128.82,0.67]
[1763976101599,7.70159371,128.88,128.83,7.70159371]
[1763976101785,7.70159371,128.89,128.84,7.70159371]
[1763976102093,0.76675383,128.9,128.85,11.22159371]
[1763976102094,7.70329514,128.9,128.85,11.22159371]
[1763976102266,7.70329514,128.9,128.85,3.52]
[1763976102467,7.70329514,128.9,128.86,0.67]
[1763976102697,7.70159371,128.89,128.86,0.67]
[1763976102989,0.00170143,128.9,128.86,0.67]
[1763976103293,7.70329514,128.9,128.86,0.67]
[1763976103505,7.70159371,128.89,128.86,0.67]
[1763976103703,7.70159371,128.89,128.85,3.52]
[1763976104004,7.70329514,128.9,128.86,0.67]
[1763976104212,7.70159371,128.89,128.86,0.67]
[1763976104379,7.70159371,128.88,128.85,3.52]
[1763976104580,7.70159371,128.86,128.81,0.67]
[1763976104782,0.14923658,128.87,128.83,7.70159371]
[1763976105001,0.14923658,128.87,128.84,11.22159371]
[1763976105395,0.14923658,128.87,128.85,0.67]
[1763976106305,0.14923658,128.87,128.85,8.37159371]
[1763976106508,0.14923658,128.87,128.86,7.70159371]
[1763976106690,0.16422673,128.88,128.86,18.1604214]
[1763976106897,0.15358211,128.89,128.87,18.1604214]
[1763976107093,0.15358211,128.89,128.88,11.22159371]
[1763976107284,0.15358211,128.89,128.88,4.19]
[1763976107606,0.15358211,128.89,128.88,21.6804214]
[1763976107806,0.15358211,128.89,128.88,11.89159371]
[1763976108021,0.15358211,128.89,128.88,18.1604214]
[1763976108184,0.15358211,128.89,128.88,21.6804214]
[1763976108385,0.15358211,128.89,128.88,13.97882769]
[1763976108592,0.15358211,128.89,128.88,16.28663374]
[1763976109194,0.15358211,128.89,128.88,12.76663374]
[1763976109395,0.15358211,128.89,128.88,16.28663374]
[1763976109985,0.15358211,128.89,128.88,13.97882769]
[1763976110192,0.15358211,128.89,128.88,26.07546143]
[1763976110409,0.15343055,128.91,128.88,26.07546143]
[1763976110410,0.06226312,128.95,128.89,0.67]
[1763976110581,0.06226312,128.95,128.91,12.09663374]
[1763976110911,0.06226312,128.95,128.89,0.67]
[1763976111407,0.06226312,128.95,128.9,12.09663374]
[1763976111818,12.15889686,128.95,128.9,12.09663374]
[1763976111999,12.15889686,128.95,128.91,3.52]
[1763976112512,0.06226312,128.95,128.91,15.61663374]
[1763976112690,0.06226312,128.95,128.92,12.09663374]
[1763976113307,0.06226312,128.95,128.93,12.09663374]
[1763976113715,0.06226312,128.95,128.92,12.76663374]
[1763976113898,0.06226312,128.95,128.93,12.09663374]
[1763976114296,0.06226312,128.95,128.93,12.76663374]
[1763976114796,0.2,129.02,128.94,22.55546143]
[1763976114998,0.2,129.02,128.98,12.09663374]
[1763976115201,0.2,129.02,128.97,12.09663374]
[1763976115513,0.2,129.02,128.98,12.09663374]
[1763976115734,0.2,129.02,128.96,0.67]
[1763976115892,12.29663374,129.02,128.96,12.09663374]
[1763976116093,12.29663374,129.02,128.97,3.52]
[1763976116494,0.2,129.02,128.98,12.09663374]
[1763976116919,0.2,129.02,129.01,12.09663374]
[1763976117097,0.2,129.02,129.01,15.61663374]
[1763976117793,0.2,129.02,129.01,3.52]
[1763976118194,0.2,129.02,129.01,15.61663374]
[1763976118394,0.2,129.02,129.01,3.52]
[1763976118610,0.2,129.02,129.01,15.61663374]
[1763976119895,0.2,129.02,129.01,16.28663374]
[1763976121218,0.2,129.02,129.01,26.07546143]
[1763976121597,0.2,129.02,129.01,13.97882769]
[1763976121798,0.2,129.02,129.01,4.19]
[1763976122023,0.2,129.02,129.01,12.76663374]
[1763976122261,0.2,129.02,129.01,3.52]
[1763976122538,0.2,129.02,128.98,9.78882769]
[1763976122698,12.76663374,129.01,128.96,12.09663374]
[1763976122905,12.09663374,129.0,128.96,0.67]
[1763976123124,12.09663374,128.98,128.93,0.67]
[1763976123297,12.76663374,129.0,128.95,12.09663374]
[1763976123500,12.09663374,128.96,128.91,0.67]
[1763976123707,12.09663374,128.98,128.94,3.52]
[1763976124125,12.09663374,128.99,128.94,3.52]
[1763976124443,12.09663374,128.98,128.94,4.19]
[1763976124646,0.16619662,128.95,128.94,4.19]
[1763976125001,0.16619662,128.95,128.94,26.07546143]
[1763976125198,0.16619662,128.95,128.94,26.85101595]
[1763976125835,0.16647845,128.98,128.95,9.78882769]
[1763976126041,0.16498191,128.99,128.96,1.44543424]
[1763976126247,12.76663374,128.98,128.94,3.52]
[1763976126415,0.16498191,128.99,128.97,12.09663374]
[1763976126615,0.16498191,128.99,128.98,3.52]
[1763976127742,12.26161565,128.99,128.91,46.04741979]
[1763976127926,12.26161565,128.99,128.94,12.09663374]
[1763976128320,0.16498191,128.99,128.95,12.76663374]
[1763976128540,0.16498191,128.99,128.96,3.52]
[1763976128949,0.16498191,128.99,128.96,4.19]
[1763976130638,12.76663374,128.98,128.96,3.52]
[1763976131032,0.16498191,128.99,128.96,15.61663374]
[1763976131241,0.16498191,128.99,128.96,16.28663374]
[1763976131552,0.16498191,128.99,128.94,0.77555452]
[1763976131553,0.67,128.98,128.94,0.77555452]
[1763976131749,12.76663374,128.98,128.97,3.52]
[1763976132754,12.76663374,128.98,128.91,12.76663374]
[1763976132928,0.16498191,128.99,128.91,12.76663374]
[1763976132929,12.76663374,128.97,128.94,3.52]
[1763976133567,0.67,128.96,128.94,3.52]
[1763976133769,12.76663374,128.96,128.94,3.52]
[1763976134772,12.76663374,128.95,128.88,0.67]
[1763976134941,12.09663374,128.94,128.89,3.52]
[1763976135152,12.09663374,128.94,128.89,16.27663374]
[1763976135153,0.7,128.94,128.89,16.27663374]
[1763976135467,0.7,128.94,128.9,12.09663374]
[1763976135637,0.7,128.94,128.9,12.75663374]
[1763976135960,12.09663374,128.92,128.89,3.52]
[1763976136161,0.7,128.94,128.89,3.52]
[1763976136365,12.09663374,128.95,128.89,16.31663374]
[1763976136533,20.76445492,128.99,128.91,12.09663374]
[1763976136534,18.28594191,128.99,128.91,12.09663374]
[1763976136738,0.16498191,128.99,128.94,12.09663374]
[1763976136958,0.16498191,128.99,128.95,16.39212811]
[1763976137159,12.26161565,128.99,128.96,3.52]
[1763976137752,12.09663374,128.98,128.96,3.52]
[1763976138564,0.16498191,128.99,128.96,3.52]
[1763976138744,0.84498191,128.99,128.94,0.7]
[1763976138943,0.16498191,128.99,128.96,3.52]
[1763976139143,0.16498191,128.99,128.96,15.61663374]
[1763976139341,0.16498191,128.99,128.97,0.7]
[1763976139545,0.16498191,128.99,128.97,12.79663374]
[1763976140046,0.16498191,128.99,128.98,0.7]
[1763976140259,0.16498191,128.99,128.98,22.58546143]
[1763976140771,0.16498191,128.99,128.98,30.33860145]
[1763976140975,0.16498191,128.99,128.98,22.58546143]
[1763976142056,0.16498191,128.99,128.98,92.43860145]
[1763976142751,0.16498191,128.99,128.98,94.43860144]
[1763976142948,0.15117149,129.0,128.99,9.78882769]
[1763976143254,0.15117149,129.0,128.99,23.36071532]
[1763976143570,0.1425279,129.01,129.0,23.88546142]
[1763976143779,0.1425279,129.01,129.0,24.58546142]
[1763976144074,0.16669336,129.03,129.02,11.78882768]
[1763976144284,0.16669336,129.03,129.02,27.40546142]
[1763976144472,0.33636274,129.03,129.02,28.10546142]
[1763976144649,0.16644524,129.06,129.05,37.6587222]
[1763976144842,0.34838753,129.07,129.06,9.78882769]
[1763976145151,0.34838753,129.07,129.06,22.58546143]
[1763976145574,0.34838753,129.07,129.06,26.10546143]
[1763976145772,0.34838753,129.07,129.06,14.00882769]
[1763976145974,0.34838753,129.07,129.06,10.48882769]
[1763976146269,0.34838753,129.07,129.06,26.08546143]
[1763976146464,0.34838753,129.07,129.06,13.98882769]
[1763976146666,0.34838753,129.07,129.06,26.08546143]
[1763976146976,0.34838753,129.07,129.06,13.98882769]
[1763976147158,0.34838753,129.07,129.06,26.08546143]
[1763976148059,0.34838753,129.07,129.04,0.7749535]
[1763976148262,1.02838753,129.07,129.05,3.5]
[1763976148578,0.34838753,129.07,129.05,3.5]
[1763976149258,13.12502127,129.07,129.05,3.5]
[1763976149559,0.34838753,129.07,129.05,3.5]
[1763976150592,0.34838753,129.07,129.04,9.78882769]
[1763976150771,12.09663374,129.05,128.95,1.99999999]
[1763976151092,12.09663374,129.05,128.88,18.64]
[1763976151093,12.09663374,129.05,128.96,3.5]
[1763976151094,12.09663374,128.97,128.96,3.5]
[1763976151266,12.77663374,128.97,128.96,3.52]
[1763976151791,12.09663374,128.97,128.96,3.52]
[1763976152088,12.09663374,128.98,128.96,3.52]
[1763976152264,12.09663374,128.97,128.96,3.52]
[1763976153775,12.77663374,129.01,128.97,9.78882769]
[1763976153975,0.68,129.03,128.97,22.58546143]
[1763976154280,12.77663374,129.03,128.99,9.78882769]
[1763976154489,12.77663374,129.03,129.0,3.52]
[1763976154787,0.68,129.03,129.0,3.52]
[1763976154979,12.77663374,129.03,129.0,3.52]
[1763976155488,12.77663374,129.02,129.0,3.52]
[1763976155862,12.77663374,129.01,128.96,12.79663374]
[1763976156072,12.77663374,129.01,128.97,13.30882769]
[1763976156268,0.68,129.01,128.97,25.40546143]
[1763976156482,0.68,129.03,128.97,26.10546143]
[1763976156693,12.09663374,129.01,128.97,13.30882769]
[1763976156861,12.09663374,128.99,128.97,3.52]
[1763976157307,12.77663374,128.99,128.97,3.52]
[1763976159594,12.09663374,129.06,128.95,3.5]
[1763976159595,12.77663374,128.98,128.95,3.5]
[1763976159910,12.09663374,128.96,128.95,3.5]
[1763976160081,12.77663374,128.97,128.95,3.5]
[1763976160483,12.77663374,128.96,128.95,3.5]
[1763976162708,0.68,128.96,128.95,3.5]
[1763976162911,12.09663374,128.97,128.95,3.5]
[1763976163397,12.77663374,128.97,128.95,3.5]
[1763976163912,12.09663374,128.98,128.95,3.5]
[1763976164086,12.09663374,129.01,128.96,21.88546143]
[1763976164290,0.68,129.02,128.97,12.09663374]
[1763976164489,0.16280829,128.98,128.97,12.09663374]
[1763976164728,0.16280829,128.98,128.97,23.36083554]
[1763976165027,0.16280829,128.98,128.97,31.11457672]
[1763976165518,0.16280829,128.98,128.97,23.36083554]
[1763976166107,0.16280829,128.98,128.97,0.77537411]
[1763976166312,0.16280829,128.98,128.97,22.66083554]
[1763976166806,0.16280829,128.98,128.97,10.5642018]
[1763976166986,0.16280829,128.98,128.97,9.78882769]
[1763976167188,0.16280829,128.98,128.97,13.28882769]
[1763976167489,0.16280829,128.98,128.97,3.5]
[1763976167711,0.85280829,128.98,128.93,19.60657467]
[1763976167892,0.85280829,128.98,128.94,25.38546143]
[1763976168221,0.85280829,128.98,128.94,26.09546143]
[1763976168515,0.16280829,128.98,128.95,12.80663374]
[1763976168699,0.16280829,128.98,128.95,7.71117564]
[1763976169200,0.16280829,128.98,128.96,17.50000333]
[1763976169402,0.16280829,128.98,128.97,3.5]
[1763976169897,8.56398393,128.98,128.97,3.5]
[1763976170087,0.85280829,128.98,128.97,3.5]
[1763976170608,0.85280829,128.98,128.96,3.5]
[1763976170609,8.56398393,128.98,128.96,3.5]
[1763976170814,7.71117564,128.97,128.96,3.5]
[1763976170990,8.40117564,128.97,128.96,3.5]
[1763976174409,0.69,128.97,128.96,3.5]
[1763976174713,0.16280829,128.98,128.96,74.02117564]
[1763976174914,0.16280829,128.98,128.97,18.21000333]
[1763976175295,0.16280829,128.98,128.97,9.78882769]
[1763976175713,0.16280829,128.98,128.97,10.49882769]
[1763976175911,0.16280829,128.98,128.97,9.78882769]
[1763976176105,0.16280829,128.98,128.97,13.28882769]
[1763976176422,0.16280829,128.98,128.97,21.71000333]
[1763976176724,0.16280829,128.98,128.97,3.5]
[1763976180500,8.56398393,128.98,128.97,3.5]
[1763976180746,8.56398393,128.98,128.92,9.78882769]
[1763976181024,7.71117564,128.93,128.86,62.81]
[1763976181223,25.83213564,128.96,128.87,3.5]
[1763976181424,7.71117564,128.9,128.87,3.5]
[1763976181832,8.40117564,128.9,128.87,3.5]
[1763976182628,0.69,128.89,128.83,0.1]
[1763976182944,0.14216157,128.95,128.84,3.5]
[1763976183102,7.71117564,128.92,128.86,7.71117564]
[1763976183305,7.71117564,128.92,128.87,13.28882769]
[1763976183524,8.40117564,128.92,128.87,21.00000333]
[1763976183706,0.69,128.91,128.87,13.28882769]
[1763976184039,7.71117564,128.93,128.88,8.42117564]
[1763976184210,8.40117564,128.94,128.88,8.42117564]
[1763976184407,8.40117564,128.94,128.89,9.78882769]
[1763976184637,0.15612323,128.89,128.88,62.1]
[1763976184829,0.15612323,128.89,128.88,66.37591558]
[1763976185212,0.15612323,128.89,128.88,74.08709122]
[1763976186003,0.15612323,128.89,128.88,65.6]
[1763976186406,0.15612323,128.89,128.88,66.31]
[1763976186629,0.15612323,128.89,128.88,76.09882769]
[1763976186827,0.15612323,128.89,128.88,83.81000333]
[1763976187534,0.15612323,128.89,128.88,91.56915913]
[1763976187830,0.15612323,128.89,128.88,29.46915913]
[1763976188013,0.15612323,128.89,128.88,21.71000333]
[1763976188224,0.15612323,128.89,128.88,13.28882769]
[1763976188413,0.15612323,128.89,128.86,0.71]
[1763976188735,0.15612323,128.89,128.87,3.5]
[1763976189735,0.84612323,128.89,128.84,0.71]
[1763976189908,8.55729887,128.89,128.85,13.28882769]
[1763976190230,7.71117564,128.88,128.85,13.28882769]
[1763976190439,8.40117564,128.88,128.85,13.28882769]
[1763976191322,8.40117564,128.87,128.83,62.2]
[1763976191645,7.71117564,128.86,128.84,3.5]
[1763976191823,8.40117564,128.86,128.84,3.5]
[1763976192012,0.69,128.85,128.84,3.5]
[1763976192210,8.40117564,128.85,128.84,3.5]
[1763976193038,0.69,128.85,128.84,3.5]
[1763976193213,8.40117564,128.85,128.84,3.5]
[1763976194219,0.69,128.85,128.84,3.5]
[1763976194419,8.40117564,128.85,128.84,3.5]
[1763976194621,8.40117564,128.85,128.83,0.1]
[1763976194939,18.12096,128.87,128.83,0.1]
[1763976194940,8.40117564,128.84,128.83,0.1]
[1763976195716,0.66,128.86,128.83,0.1]
[1763976195918,18.12096,128.87,128.83,0.78]
[1763976195919,7.71117564,128.87,128.83,0.78]
[1763976196318,0.15612323,128.89,128.85,7.71117564]
[1763976196550,0.15612323,128.89,128.87,7.71117564]
[1763976196925,0.15612323,128.89,128.87,0.68]
[1763976197124,0.15612323,128.89,128.86,14.06486369]
[1763976197318,0.15612323,128.89,128.86,22.45603933]
[1763976197730,0.15612323,128.89,128.86,21.77603933]
[1763976197938,0.15612323,128.89,128.87,0.68]
[1763976198318,0.15612323,128.89,128.86,21.77603933]
[1763976198718,0.15612323,128.89,128.86,22.45603933]
[1763976199020,0.15612323,128.89,128.88,7.71117564]
[1763976199455,0.15612323,128.89,128.88,18.18000333]
[1763976199640,0.15612323,128.89,128.88,18.95591891]
[1763976199826,0.15612323,128.89,128.88,26.71507471]
[1763976200022,0.15612323,128.89,128.88,11.24474327]
[1763976200222,0.15612323,128.89,128.88,18.95591891]
[1763976200426,0.15612323,128.89,128.88,3.5]
[1763976201547,0.15612323,128.89,128.88,75.38882769]
[1763976201843,0.15612323,128.89,128.88,65.6]
[1763976202428,0.15612323,128.89,128.88,75.38882769]
[1763976203043,0.15612323,128.89,128.88,83.78000333]
[1763976203239,0.15712688,128.9,128.89,9.78882769]
[1763976203442,0.15712688,128.9,128.89,18.18000333]
[1763976203650,0.14331388,128.93,128.9,8.4379519]
[1763976203957,0.14331388,128.93,128.92,7.71117564]
[1763976204248,0.14331388,128.93,128.92,181.12821483]
[1763976204445,0.14331388,128.93,128.92,181.80821483]
[1763976204649,0.28452602,128.93,128.92,181.80821483]
[1763976204848,0.28452602,128.93,128.92,79.80821483]
[1763976205038,0.14121214,128.93,128.92,79.80821483]
[1763976205548,0.16777815,128.94,128.93,53.42194925]
[1763976205724,0.16777815,128.94,128.93,67.56927164]
[1763976206251,0.16777815,128.94,128.93,44.19927164]
[1763976206850,0.16777815,128.94,128.93,46.19927163]
[1763976207021,0.16777815,128.94,128.93,37.1215491]
[1763976207224,0.16777815,128.94,128.93,88.33997624]
[1763976207451,0.16777815,128.94,128.93,91.83997624]
[1763976207636,0.16777815,128.94,128.93,84.0838295]
[1763976207951,0.16777815,128.94,128.93,91.83997624]
[1763976208856,0.82777815,128.94,128.93,72.19265386]
[1763976209030,0.16777815,128.94,128.93,65.1282115]
[1763976209353,0.16777815,128.94,128.93,74.91703919]
[1763976209523,0.82777815,128.94,128.93,3.5]
[1763976210160,0.16777815,128.94,128.93,3.5]
[1763976210740,0.16777815,128.94,128.93,176.91703919]
[1763976211340,0.16671616,128.95,128.94,71.24926104]
[1763976211955,0.16671616,128.95,128.94,173.24926104]
[1763976212163,0.82671616,128.95,128.94,163.46043335]
[1763976212350,8.5378918,128.95,128.94,61.46043335]
[1763976213944,8.5378918,128.95,128.94,3.5]
[1763976214664,0.16671616,128.95,128.94,64.96043335]
[1763976215254,0.16671616,128.95,128.94,74.74926104]
[1763976215960,0.16778518,128.96,128.95,61.29371719]
[1763976216133,0.16778518,128.96,128.95,69.00489283]
[1763976217352,0.16778518,128.96,128.95,69.7803872]
[1763976217560,0.16778518,128.96,128.95,80.24921489]
[1763976217767,0.16778518,128.96,128.95,79.56921489]
[1763976218641,0.16778518,128.96,128.95,71.85803925]
[1763976219164,0.16778518,128.96,128.95,173.85803925]
[1763976219377,0.16778518,128.96,128.95,173.08254488]
[1763976221346,7.8736492,128.99,128.98,60.81152155]
[1763976221550,7.8736492,128.99,128.98,166.31152155]
[1763976222056,8.5336492,128.99,128.98,166.31152155]
[1763976222659,8.5336492,128.99,128.98,64.31152155]
[1763976224574,8.68505416,128.99,128.98,64.31152155]
[1763976225056,8.5225806,128.99,128.98,64.31152155]
[1763976225945,0.81140496,128.99,128.98,64.31152155]
[1763976226159,8.5225806,128.99,128.98,64.31152155]
[1763976226563,0.81140496,128.99,128.98,64.31152155]
[1763976227394,8.5225806,128.99,128.98,60.81152155]
[1763976227865,8.5225806,128.99,128.96,60.81152155]
[1763976228073,7.71117564,128.97,128.96,64.29152155]
[1763976228452,8.39117564,128.97,128.96,64.29152155]
[1763976228659,12.76930737,128.97,128.96,64.29152155]
[1763976230484,0.68,128.97,128.96,64.29152155]
[1763976230663,12.76930737,128.97,128.96,64.29152155]
[1763976230979,0.68,128.97,128.96,64.29152155]
[1763976231285,12.76930737,128.97,128.96,64.29152155]
[1763976234462,0.68,128.97,128.96,64.29152155]
[1763976234688,12.76930737,128.97,128.96,64.29152155]
[1763976237764,0.68,128.97,128.96,64.29152155]
[1763976238167,0.83140496,128.99,128.97,60.81152155]
[1763976238466,12.08930737,128.98,128.97,60.81152155]
[1763976238667,12.92071233,128.99,128.97,64.29152155]
[1763976238874,0.83140496,128.99,128.97,64.29152155]
[1763976239096,12.92071233,128.99,128.97,64.29152155]
[1763976240196,0.15140496,128.99,128.97,166.29152155]
[1763976240577,12.92071233,128.99,128.97,166.29152155]
[1763976241167,0.83140496,128.99,128.97,166.29152155]
[1763976241374,0.15140496,128.99,128.97,166.29152155]
[1763976241587,0.83140496,128.99,128.97,166.29152155]
[1763976242780,12.08930737,128.98,128.97,166.29152155]
[1763976243299,12.76930737,128.98,128.97,166.29152155]
[1763976244495,12.93112006,128.98,128.97,166.29152155]
[1763976245284,12.93112006,128.98,128.97,64.29152155]
[1763976247412,31.05208006,128.98,128.92,60.81152155]
[1763976247702,0.68,128.97,128.94,3.48]
[1763976248601,0.16181269,128.98,128.94,4.18]
[1763976248807,0.16181269,128.98,128.94,179.85638344]
[1763976248995,0.16181269,128.98,128.94,166.99152155]
[1763976249184,12.25112006,128.98,128.94,166.99152155]
[1763976249379,0.16181269,128.98,128.95,9.78882769]
[1763976249621,0.16181269,128.98,128.97,9.78882769]
[1763976249806,0.16181269,128.98,128.97,21.87813506]
[1763976250408,0.15452901,128.99,128.98,29.63127508]
[1763976250582,0.15452901,128.99,128.98,34.48658908]
[1763976250979,0.15452901,128.99,128.97,3.48]
[1763976251318,12.24383638,128.99,128.97,3.48]
[1763976251682,0.15452901,128.99,128.97,3.48]
[1763976253420,0.15452901,128.99,128.98,10.38882769]
[1763976253973,0.01601755,129.0,128.98,0.6]
[1763976254267,0.01601755,129.0,128.99,3.48]
[1763976256267,0.01601755,129.0,128.97,9.78882769]
[1763976256471,0.01601755,129.0,128.99,3.48]
[1763976257235,12.10532492,129.0,128.99,3.48]
[1763976257571,0.01601755,129.0,128.99,3.48]
[1763976260636,0.35001366,129.02,128.99,3.48]
[1763976260637,0.14645702,129.03,129.02,47.49881692]
[1763976260970,12.23576439,129.03,129.02,47.49881692]
[1763976261168,18.12096,129.02,128.99,47.49881692]
[1763976261376,12.08930737,129.0,128.99,47.49881692]
[1763976261585,18.8860124,129.02,128.99,47.49881692]
[1763976261870,12.08930737,129.0,128.99,47.49881692]
[1763976262438,18.12096,129.02,128.99,47.49881692]
[1763976262641,12.08930737,129.0,128.99,47.49881692]
[1763976263067,12.79930737,129.0,128.99,47.49881692]
[1763976264576,12.96932845,129.0,128.99,47.49881692]
[1763976265145,0.88002108,129.0,128.99,47.49881692]
[1763976265345,12.96932845,129.0,128.99,47.49881692]
[1763976266044,12.96932845,129.0,128.99,149.49881692]
[1763976266045,0.17002108,129.0,128.99,149.49881692]
[1763976266863,12.25932845,129.0,128.99,149.49881692]
[1763976267072,0.17002108,129.0,128.99,149.49881692]
[1763976267740,0.17002108,129.0,128.99,150.18881692]
[1763976267946,12.96932845,129.0,128.99,149.49881692]
[1763976269172,0.17002108,129.0,128.99,149.49881692]
[1763976269480,0.17002108,129.0,128.99,152.97881692]
[1763976272276,12.79930737,128.98,128.97,50.97881692]
[1763976272457,12.08930737,128.98,128.97,50.97881692]
[1763976272653,12.08930737,128.99,128.97,50.97881692]
[1763976272855,12.08930737,128.98,128.97,50.97881692]
[1763976273561,12.79930737,128.98,128.97,50.97881692]
[1763976274669,12.08930737,128.98,128.97,50.97881692]
[1763976274903,12.08930737,128.99,128.97,50.97881692]
[1763976275373,12.08930737,128.98,128.97,50.97881692]
[1763976275587,12.08930737,128.98,128.97,47.49881692]
[1763976275768,12.79930737,128.98,128.97,50.97881692]
[1763976278467,0.71,128.98,128.97,50.97881692]
[1763976278662,12.79930737,128.98,128.97,50.97881692]
[1763976279895,0.71,128.99,128.97,50.97881692]
[1763976280061,12.08930737,128.98,128.97,50.97881692]
[1763976280684,12.79930737,128.98,128.97,50.97881692]
[1763976280885,12.08930737,128.98,128.97,50.97881692]
[1763976281064,0.71,128.98,128.97,50.97881692]
[1763976281262,24.88861474,128.98,128.92,47.49881692]
[1763976281466,12.08930737,128.93,128.92,47.49881692]
[1763976281976,0.71,128.95,128.92,47.49881692]
[1763976282369,34.40035092,128.99,128.93,3.48]
[1763976282370,12.08930737,128.94,128.93,3.48]
[1763976282581,12.08930737,128.94,128.93,50.97881692]
[1763976283086,12.08930737,128.97,128.93,153.66881692]
[1763976283262,12.08930737,128.97,128.94,0.69]
[1763976283568,18.29098108,129.0,128.95,3.48]
[1763976283758,0.71,128.99,128.95,152.97881692]
[1763976283958,12.08930737,128.98,128.95,153.66881692]
[1763976284161,12.79930737,128.99,128.95,153.66881692]
[1763976284560,0.14766862,128.97,128.96,0.69]
[1763976284767,0.14766862,128.97,128.96,48.18881692]
[1763976286075,0.14766862,128.97,128.96,48.96425116]
[1763976286862,0.16973156,128.99,128.98,47.19023831]
[1763976287064,0.16973156,128.99,128.98,73.3179833]
[1763976287269,0.16973156,128.99,128.98,74.0179833]
[1763976287870,0.16973156,128.99,128.98,81.77112332]
[1763976289666,0.16973156,128.99,128.98,74.0179833]
[1763976289863,0.16973156,128.99,128.98,56.979066]
[1763976290067,12.25333486,128.99,128.98,50.67023831]
[1763976290798,0.16973156,128.99,128.98,50.67023831]
[1763976291089,7.88226625,128.99,128.98,152.67023831]
[1763976292297,8.56226625,128.99,128.98,47.19023831]
[1763976292518,7.88226625,128.99,128.98,50.67023831]
[1763976293628,0.16973156,128.99,128.98,51.37023831]
[1763976293837,0.16973156,128.99,128.98,50.67023831]
[1763976296226,7.71253469,128.99,128.98,50.50050675]
[1763976296614,18.12096,128.97,128.91,47.02050675]